Workbook

Sheet Invoere
B2: Invoere
B5: Fisiese Gegewens | E5: Verander asseblief die waardes na gelang van u boerdery omstandighede
B6: Produktiewe Ooie (Aantal) | C6: 400
B7: Persentasie Ramme | C7: 3%
B8: Vervangings Persentasie | C8: 25%
B9: Speen Persentasie | C9: 70%
B10: Speen Gewig (Kg) | C10: 30
B11: Stoorlam Prys (R/kg) | C11: R 25.00
B12: Uitskot Ooie Karkas Gewig (Kg) | C12: 33
B13: C Graad Karkas Pys (R/kg) | C13: R 37.50
B15: Lek en Voer Gegewens
B16: Winterlek
B17: Aankoop Grootte (bv. 50 kg) | C17: 50
B18: Aankoop Prys (R) | C18: R 161
B19: Inname (kg/dier/dag) | C19: 0.25
B20: Tydperk (Dae) | C20: 180
B22: Somerlek
B23: Aankoop Grootte (bv. 50 kg) | C23: 25
B24: Aankoop Prys (R) | C24: R 106
B25: Inname (kg/dier/dag) | C25: 0.025
B26: Tydperk (Dae) | C26: 180
B28: Kruipvoer
B29: Bestandeel 1 Hoeveelheid (kg) | C29: 700
B30: Bestandeel 1 Prys (R/50kg) | C30: R 88
B31: Bestandeel 2 Hoeveelheid (kg) | C31: 200
B32: Bestandeel 2 Prys (R/50kg) | C32: R 181
B33: Bestandeel 3 Hoeveelheid (kg) | C33: 100
B34: Bestandeel 3 Prys (R/50kg) | C34: R 253
B35: Bestandeel 4 Hoeveelheid (kg) | C35: 3
B36: Bestandeel 4 Prys (R/50kg) | C36: R 38
B37: Inname (kg/dier/dag) | C37: 0.6
B38: Tydperk (Dae) | C38: 80
B40: Doseer en Ent Gegewens
B41: Medikament 1 Hoveelheid (Dosisse/bottel) | C41: 100
B42: Medikament 1 Prys (R/bottel) | C42: R 1,452
B43: Medikament 2 Hoveelheid (Dosisse/bottel) | C43: 100
B44: Medikament 2 Prys (R/bottel) | C44: R 339
B45: Medikament 3 Hoveelheid (Dosisse/bottel) | C45: 100
B46: Medikament 3 Prys (R/bottel) | C46: R 276
B47: Medikament 4 Hoveelheid (Dosisse/bottel) | C47: 100
B48: Medikament 4 Prys (R/bottel) | C48: R 176
B50: Ander Kostes en Inkomstes
B51: Arbeid Hoeveelheid (Aantal Werkers) | C51: 2
B52: Arbeid Prys (R/Arbeider/Maand) | C52: R 1,376
B53: Oorhoofse Koste (% van Tot. Veranderlike Kostes) | C53: 10%
B54: Ander Inkomste (bv Wol) | C54: R 50,000.00
B56: Vaste Koste | E56: "Click" op Marges om u na die Koste en Marge berekenings te neem
B57: Huur/Verband Koste (R/ha/jaar) | C57: R 300
B58: Drakrag (ha/KVE) | C58: 0.7
B60: Marges

Sheet Berekening (hidden)
A1: Produksie kostes - Skaap
A3: Fisiese Gegewens | H3: Doseer en Ent Kostes | Q3: Koste/Kg | R3: Marge/kg | S3: Verandering
A4: Aantal Skape | C4: =C6+C7+C8 -> 512 | I4: Dosisse | J4: Per skaap | K4: Aankoop prys | O4: Basis | P4: Nuwe | Q4: R 14.53 | R4: R 10.47 | S4: 0
H5: MultivaxP | I5: =Invoere!C41 -> 100 | J5: =K5/I5 -> R 14.52 | K5: =Invoere!C42 -> R 1,452 | N5: Ooie | O5: 400 | P5: 200 | Q5: R 21.26 | R5: R 3.74 | S5: =$Q$4-Q5 -> -R 6.73
A6: Produktiewe Ooie | C6: =Invoere!C6 -> 400 | H6: Slenkdal | I6: =Invoere!C43 -> 100 | J6: =K6/I6 -> R 3.39 | K6: =Invoere!C44 -> R 339 | N6: Speen % | O6: 70 | P6: 60 | Q6: R 17.21 | R6: R 7.79 | S6: =$Q$4-Q6 -> -R 2.68
A7: Jong ooie | B7: =Invoere!C8 -> 25% | C7: =C6*B7 -> 100 | H7: Bloutong | I7: =Invoere!C45 -> 100 | J7: R 2.76 | K7: =Invoere!C46 -> R 276 | N7: Speen Kg | O7: 30 | P7: 25 | Q7: R 17.44 | R7: R 7.56 | S7: =$Q$4-Q7 -> -R 2.91
A8: Ramme | B8: =Invoere!C7 -> 3% | C8: =C6*B8 -> 12 | H8: MDB maxicare | I8: =Invoere!C47 -> 100 | J8: =K8/I8 -> R 1.76 | K8: =Invoere!C48 -> R 176 | N8: Kruipvoer | O8: Ja | P8: Nee | Q8: R 7.79 | R8: R 17.21 | S8: =$Q$4-Q8 -> R 6.74
H9: Koste/Skaap | J9: =SUM(J5:J8) -> R 22.43 | N9: Arbeid | O9: 2 | P9: 3 | Q9: R 17.89 | R9: R 7.11 | S9: =$Q$4-Q9 -> -R 3.36
A10: Lammers Gespeen | B10: =Invoere!C9 -> 70% | C10: =C6*B10 -> 280
A11: Lammers Bemark | C11: =C10-(B7*C6) -> 180 | H11: Ander Kostes en Inkomste | N11: Speen % | O11: 70 | P11: 100 | Q11: R 12.80 | R11: R 12.20 | S11: =$Q$4-Q11 -> R 1.73
A12: Speengewig | B12: kg | C12: =Invoere!C10 -> 30 | I12: Werkers | J12: Arbeid/Jaar | K12: Werker/Maand
H13: Arbeid | I13: =Invoere!C51 -> 2 | J13: =(K13*I13)*12 -> R 33,024 | K13: =Invoere!C52 -> R 1,376
A14: Uitskot Ooie | B14: =B7 -> 25% | C14: =C6*B14 -> 100 | N14: Vaste Koste
A15: Karkas gewig | B15: kg | C15: =Invoere!C12 -> 33 | I15: % van Tot | J15: Tot/Jaar | N15: Huur/Verband koste (R/ha/jaar) | P15: =Invoere!C57 -> R 300.00
H16: Oorhoofs | I16: =Invoere!C53 -> 10% | J16: =((C24*C4)+(C45*C10)+((C4+C10)*J9)+J13)*(I16) -> R 15,800
A17: Lek en Voer Kostes | H17: Ander Inkomste | J17: =Invoere!C54 -> R 50,000.00 | N17: Drakrag (ha/KVE) | P17: =Invoere!C58 -> 0.7
A18: Winterlek | B18: Hoeveelheid | C18: Koste | D18: R/50kg | H18: Totaal | J18: =J13+J16-J17 -> -R 1,176 | N18: Weiding Benodig | P18: =P17*C4 -> 358
A19: Produksie | B19: =Invoere!C17 -> 50 | C19: =D19 -> R 161 | D19: =Invoere!C18 -> R 161
A20: Koste | B20: R/kg | C20: =C19/B19 -> R 3.22 | H20: Totale Kostes | N20: Koste Per Jaar | P20: =P15*P18 -> R 107,520
H21: Lek en Voer | J21: =(C34*(C4+C14))+(C45*C10) -> R 133,377
A22: Inname | B22: kg/dier/dag | C22: =Invoere!C19 -> 0.25 | H22: Doseer en Ent | J22: =J9*(C4+C10+C14) -> R 20,008
A23: Tydperk | B23: Dae | C23: =Invoere!C20 -> 180 | H23: Ander | J23: =J18 -> -R 1,176 | N23: Finale Marge
A24: Koste/dier | C24: =C20*C22*C23 -> R 144.90 | H24: Totaal | J24: =SUM(J21:J23) -> R 152,208 | N24: Inkomste | P24: =J38 -> R 135,000.00
A26: Somerlek | B26: Hoeveelheid | C26: Koste | D26: R/25kg | H26: Per Bemarkte Lam | J26: =J24/C11 -> R 845.60 | N26: Veranderlike Kostes (Na Uitskot Ooie) | P26: =J42 -> R 28,458
A27: Fosfaatblok | B27: =Invoere!C23 -> 25 | C27: =D27 -> R 106 | D27: =Invoere!C24 -> R 106 | H27: Per Bemarkte Kg | J27: =J26/C12 -> R 28.19
A28: Koste | B28: R/kg | C28: =C27/B27 -> R 4.24 | N28: Vaste Koste | P28: =P20 -> R 107,520
H29: Min: Uitskot Ooie
A30: Inname | B30: kg/dier/dag | C30: =Invoere!C25 -> 0.025 | H30: R/kg | I30: =Invoere!C13 -> R 37.50 | J30: =C14*C15*I30 -> R 123,750 | N30: Finale Marge | P30: =P24-P26-P28 -> R -978.00
A31: Tydperk | B31: Dae | C31: =Invoere!C26 -> 180 | N31: Netto Marge/Bemarkbare Lam | P31: =P30/C11 -> R -5.43
A32: Koste/dier | C32: =C28*C30*C31 -> R 19.08 | H32: Totaal per Lam | J32: =(J24-J30)/C11 -> R 158.10 | N32: Netto Marge/Bemarkbare Kg | P32: =P31/C12 -> R -0.18
H33: Totaal per kg | J33: =J32/C12 -> R 5.27
A34: Totale lek / dier | C34: =C24+C32 -> R 163.98
H35: Marge
A36: Kruipvoer | B36: Hoeveelheid | C36: Koste | D36: R/50kg | H36: Inkomste
A37: Mielies | B37: =Invoere!C29 -> 700 | C37: =(D37/50)*B37 -> R 1,232 | D37: =Invoere!C30 -> R 88 | H37: Lammers Bemark
A38: SS 200 | B38: =Invoere!C31 -> 200 | C38: =(D38/50)*B38 -> R 724 | D38: =Invoere!C32 -> R 181 | H38: R/kg | I38: =Invoere!C11 -> R 25.00 | J38: =I38*C11*C12 -> R 135,000.00
A39: Procon 33 | B39: =Invoere!C33 -> 100 | C39: R 506 | D39: =Invoere!C34 -> R 253 | H39: Per Lam | J39: =J38/C11 -> R 750.00
A40: Voerkalk | B40: =Invoere!C35 -> 3 | C40: R 2 | D40: =Invoere!C36 -> R 38
A41: Koste | B41: R/kg | C41: =SUM(C37:C40)/SUM(B37:B40) -> R 2.46 | H41: Kostes
H42: Na Uitskot Ooie | J42: =J24-J30 -> R 28,458
A43: Inname | B43: kg/dier/dag | C43: =Invoere!C37 -> 0.6
A44: Tydperk | B44: Dae | C44: =Invoere!C38 -> 80 | H44: Bruto Marge | J44: =J38-J42 -> R 106,542.00
A45: Koste/lam | C45: =C41*C43*C44 -> R 117.93 | H45: Marge/Bermarkte Lam | J45: =J44/C11 -> R 591.90
H46: Marge/Bermarkte Kg | J46: =J45/C12 -> R 19.73

Sheet Marges
B2: Kostes en Marges
B5: Fisiese Afvoere | E5: Al die betrokke waardes is berekenings en moet dus nie verander word nie
B6: Produktiewe Ooie | C6: =Berekening!C6 -> 400
B7: Jong Ooie | C7: =Berekening!C7 -> 100
B8: Ramme | C8: =Berekening!C8 -> 12
B9: Totale Aantal Skaap | C9: =Berekening!C4 -> 512
B10: Lammers Gespeen | C10: =Berekening!C10 -> 280
B11: Lammers Bemark | C11: =Berekening!C11 -> 180
B12: Uitskot Ooie | C12: =Berekening!C14 -> 100
B14: Lek en Voer Afvoere
B15: Winterlek Koste (R/kg) | C15: =Berekening!C20 -> R 3.22
B16: Winterlek Koste (R/Dier) | C16: =Berekening!C24 -> R 144.90
B17: Somerlek Koste (R/kg) | C17: =Berekening!C28 -> R 4.24
B18: Somerlek Koste (R/Dier) | C18: =Berekening!C32 -> R 19.08
B19: Kruipvoer Koste (R/kg) | C19: =Berekening!C41 -> R 2.46
B20: Kruipvoer Koste (R/Lam) | C20: =Berekening!C45 -> R 117.93
B22: Doseer en Ent Afvoere
B23: Medikament 1 (R/Dier) | C23: =Berekening!J5 -> R 14.52
B24: Medikament 2 (R/Dier) | C24: =Berekening!J6 -> R 3.39
B25: Medikament 3 (R/Dier) | C25: =Berekening!J7 -> R 2.76
B26: Medikament 4 (R/Dier) | C26: =Berekening!J8 -> R 1.76
B27: Totaal Per Dier | C27: =Berekening!J9 -> R 22.43
B29: Ander Koste en Inkoste Afvoere
B30: Arbeid Koste per Jaar | C30: =Berekening!J13 -> R 33,024
B31: Oorhoofse Koste per Jaar | C31: =Berekening!J16 -> R 15,800
B32: Ander Inkomste (bv Wol) | C32: =Berekening!J17 -> R 50,000
B34: Totale Veranderlike Kostes
B35: Lek en Voer | C35: =Berekening!J21 -> R 133,377
B36: Doseer en Ent | C36: =Berekening!J22 -> R 20,008
B37: Ander | C37: =Berekening!J23 -> -R 1,176
B38: Totaal | C38: =Berekening!J24 -> R 152,208
B39: Totaal / Bemarkte Lam | C39: =Berekening!J26 -> R 846
B40: Totaal / Bemarkte Kg | C40: =Berekening!J27 -> R 28.19
B42: Min: Uitskot Ooie | C42: =Berekening!J30 -> R 123,750
B44: Totaal / Lam | C44: =Berekening!J32 -> R 158
B45: Totaal / Kg | C45: =Berekening!J33 -> R 5.27
B47: Marge voor Vaste Koste
B48: Inkomste
B49: Totale Lammers Bemark | C49: =Berekening!J38 -> R 135,000.00
B50: Inkomste / Lam | C50: =Berekening!J39 -> R 750.00
B52: Min: Kostes
B53: Na Uitskot Ooie | C53: =Berekening!J42 -> R 28,458
B55: Bruto Marge | C55: =Berekening!J44 -> R 106,542
B56: Bruto Marge/Bemarkte Lam | C56: =Berekening!J45 -> R 591.90
B57: Bruto Marge/Bemarkte Kg | C57: =Berekening!J46 -> R 19.73
B59: Vaste Koste
B60: Weiding Benodig (Ha) | C60: =Berekening!P18 -> 358
B61: Huur/Verband Koste per Jaar | C61: =Berekening!P20 -> R 107,520
B63: Netto Marge
B64: Bruto Marge | C64: =Berekening!J44 -> R 106,542
B66: Min: Vaste Koste | C66: =Berekening!P28 -> R 107,520.00
B68: Netto Marge | C68: =Berekening!P30 -> R -978.00 | E68: "Click" op Invoere indien u van die Invoere wil verander
B69: Netto Marge/Bemarkbare Lam | C69: =Berekening!P31 -> R -5.43
B70: Netto Marge/Bemarkbare Kg | C70: =Berekening!P32 -> R -0.18
B72: Invoere
